bitfinex/quotes_SOLUSD_20220119
["timestamp","ask_amount","ask_price","bid_price","bid_amount"]
[1642564298740,36.77182594,137.49,137.41,56.31725784]
[1642564299140,4.6838939,137.53,137.41,56.31725784]
[1642564299442,2.91,137.53,137.43,71.21]
[1642564299639,153.75714878,137.54,137.44,11.628]
[1642564299844,153.75714878,137.54,137.44,8.97]
[1642564300040,153.75714878,137.54,137.44,8.72]
[1642564300243,153.75714878,137.54,137.45,10.44825611]
[1642564300440,153.75714878,137.54,137.45,19.16825611]
[1642564301246,164.66924878,137.54,137.45,30.08035611]
[1642564301444,153.75714878,137.54,137.45,30.08035611]
[1642564301843,130.40304878,137.54,137.45,30.08035611]
[1642564302046,178.74224823,137.54,137.45,30.08035611]
[1642564302447,34.0,137.53,137.44,6.28694389]
[1642564302646,29.0,137.49,137.37,68.56130383]
[1642564302846,2.91,137.48,137.38,8.72]
[1642564303046,10.9338939,137.48,137.36,26.8415]
[1642564303248,10.9338939,137.48,137.34,8.72]
[1642564303446,24.29875149,137.47,137.34,45.02315104]
[1642564303645,8.911,137.46,137.34,8.72]
[1642564303849,10.9348939,137.46,137.34,8.72]
[1642564304047,19.4048939,137.46,137.3,8.72]
[1642564304249,8.911,137.46,137.31,74.121]
[1642564304448,2.911,137.5,137.32,8.72]
[1642564304649,6.0,137.49,137.33,2.91]
[1642564304848,13.8262,137.48,137.34,79.93]
[1642564305047,13.8262,137.48,137.35,40.80901824]
[1642564305048,38.08867681,137.47,137.35,40.80901824]
[1642564305247,38.08867681,137.47,137.36,8.72]
[1642564305448,6.0,137.47,137.36,8.72]
[1642564305649,6.0,137.47,137.37,0.25]
[1642564305851,10.9181,137.46,137.37,0.25]
[1642564306049,10.9181,137.46,137.37,3.16]
[1642564306549,10.9181,137.46,137.38,40.8108813]
[1642564306950,19.58012503,137.46,137.38,40.8108813]
[1642564307152,10.9181,137.46,137.38,40.8108813]
[1642564307451,10.9181,137.46,137.37,3.16]
[1642564307651,10.9181,137.46,137.37,0.25]
[1642564308451,33.40361549,137.45,137.37,0.25]
[1642564308650,0.25,137.44,137.36,42.06294009]
[1642564308851,0.25,137.44,137.35,2.91]
[1642564309051,2.911,137.43,137.31,2.911]
[1642564309251,9.161,137.44,137.33,0.25]
[1642564309451,8.911,137.44,137.33,0.25]
[1642564309654,2.911,137.44,137.33,0.25]
[1642564309953,11.631,137.49,137.34,2.911]
[1642564310152,29.39317807,137.45,137.34,4.35102954]
[1642564310353,29.39317807,137.45,137.35,1.69002954]
[1642564310553,29.39317807,137.45,137.36,47.20853806]
[1642564310758,29.39317807,137.45,137.37,0.25]
[1642564310959,29.39317807,137.45,137.38,2.91]
[1642564311155,29.39317807,137.45,137.39,34.83131383]
[1642564312655,10.9173,137.47,137.39,34.83131383]
[1642564314560,10.9173,137.47,137.36,2.91]
[1642564314765,19.8285,137.46,137.35,81.37002954]
[1642564314967,16.9185,137.46,137.35,72.65002954]
[1642564315166,2.911,137.45,137.35,72.65002954]
[1642564315561,31.95887025,137.45,137.36,34.99742035]
[1642564315966,31.95887025,137.45,137.37,0.25]
[1642564316262,39.96667025,137.45,137.37,0.25]
[1642564316462,2.91,137.47,137.37,0.25]
[1642564317162,10.9179,137.46,137.37,0.25]
[1642564317365,32.63172879,137.45,137.37,0.25]
[1642564317764,32.63172879,137.45,137.33,10.49]
[1642564318064,6.0,137.44,137.33,10.49]
[1642564318262,13.8317,137.43,137.34,0.25]
[1642564318466,10.9207,137.43,137.34,0.25]
[1642564318664,10.9207,137.43,137.34,38.63015342]
[1642564318965,2.911,137.44,137.34,49.12015342]
[1642564319165,22.8546,137.47,137.35,74.121]
[1642564319166,25.7656,137.47,137.35,74.121]
[1642564319366,10.9178,137.46,137.36,10.49]
[1642564319565,22.8546,137.47,137.36,10.49]
[1642564319566,22.8546,137.47,137.36,10.74]
[1642564319766,22.8546,137.47,137.37,48.80533945]
[1642564320069,22.8546,137.47,137.38,71.21]
[1642564320268,28.80791932,137.48,137.39,10.49]
[1642564320494,28.80791932,137.48,137.39,20.84002954]
[1642564320694,28.80791932,137.48,137.4,0.25]
[1642564320895,28.80791932,137.48,137.41,13.4]
[1642564321096,28.80791932,137.48,137.42,53.81806832]
[1642564321395,28.80791932,137.48,137.43,24.3111]
[1642564321596,28.80791932,137.48,137.43,25.75112954]
[1642564321794,28.80791932,137.48,137.43,14.84002954]
[1642564321997,28.80791932,137.48,137.44,0.25]
[1642564322196,28.80791932,137.48,137.43,13.4]
[1642564323899,28.80791932,137.48,137.43,10.49]
[1642564325697,28.80791932,137.48,137.44,0.25]
[1642564326298,4.56146237,137.52,137.45,36.0]
[1642564326697,4.56146237,137.52,137.46,0.25]
[1642564326898,1.65346237,137.52,137.46,0.25]
[1642564327199,1.65346237,137.52,137.46,41.88630885]
[1642564327607,2.908,137.56,137.46,41.88630885]
[1642564327805,10.9091,137.57,137.46,52.79580885]
[1642564327999,10.9091,137.57,137.46,63.28580885]
[1642564328201,2.908,137.56,137.46,63.28580885]
[1642564328400,133.31104878,137.58,137.46,134.49580885]
[1642564328701,195.844081,137.58,137.46,134.49580885]
[1642564329102,65.44103222,137.58,137.46,134.49580885]
[1642564329501,76.34933222,137.58,137.46,134.49580885]
[1642564330108,65.44103222,137.58,137.46,134.49580885]
[1642564330304,65.44103222,137.58,137.46,134.75580885]
[1642564330504,65.44103222,137.58,137.46,134.49580885]
[1642564330704,16.39837254,137.57,137.47,2.908]
[1642564330905,16.39837254,137.57,137.47,19.8166]
[1642564331105,16.39837254,137.57,137.48,0.25]
[1642564331304,2.908,137.56,137.46,10.49]
[1642564331504,6.0,137.55,137.42,2.908]
[1642564331704,14.0699,137.54,137.42,13.398]
[1642564331905,15.8437939,137.54,137.42,2.908]
[1642564332106,6.0,137.53,137.42,2.908]
[1642564332405,49.2091789,137.52,137.43,38.66135322]
[1642564332809,10.9145,137.51,137.43,38.66135322]
[1642564333007,10.9145,137.51,137.44,0.25]
[1642564333207,2.908,137.52,137.44,0.25]
[1642564333407,2.908,137.53,137.44,0.25]
[1642564334408,13.8203,137.53,137.44,0.25]
[1642564334607,10.9123,137.53,137.44,0.25]
[1642564335408,2.908,137.54,137.44,11.1614]
[1642564335607,2.908,137.56,137.44,24.5594]
[1642564335808,50.5268,137.57,137.45,71.21]
[1642564336007,6.0,137.56,137.46,2.908]
[1642564336208,6.0,137.56,137.47,42.12458436]
[1642564336408,6.0,137.56,137.48,10.908]
[1642564336610,6.0,137.56,137.48,11.158]
[1642564337613,6.0,137.56,137.47,53.03368436]
[1642564337813,2.908,137.55,137.47,42.12458436]
[1642564338013,3.158,137.55,137.47,42.12458436]
[1642564338213,37.19526131,137.54,137.46,13.398]
[1642564339015,37.19526131,137.54,137.47,0.25]
[1642564339217,37.19526131,137.54,137.46,45.52700251]
[1642564339416,48.10696131,137.54,137.46,45.52700251]
[1642564340117,10.9117,137.54,137.46,45.52700251]
[1642564340719,10.9117,137.54,137.47,0.25]
[1642564341120,10.9107,137.55,137.47,0.25]
[1642564341320,6.0,137.56,137.47,0.25]
[1642564341520,6.0,137.56,137.47,13.648]
[1642564342220,6.0,137.56,137.48,71.21]
[1642564342420,6.0,137.56,137.49,42.79614278]
[1642564342620,6.0,137.56,137.49,43.04614278]
[1642564342823,6.0,137.56,137.49,42.79614278]
[1642564343019,6.0,137.57,137.49,42.79614278]
[1642564343220,73.44133222,137.58,137.5,0.25]
[1642564343420,73.44133222,137.58,137.49,42.79614278]
[1642564343622,76.34933222,137.58,137.49,42.79614278]
[1642564344021,123.96661823,137.58,137.49,42.79614278]
[1642564344721,0.25,137.57,137.49,42.79614278]
[1642564344923,10.9107,137.55,137.45,10.49]
[1642564345324,10.9107,137.55,137.46,0.25]
[1642564345923,10.9107,137.55,137.46,35.53176274]
[1642564346323,10.9107,137.55,137.46,35.28176274]
[1642564347050,2.908,137.56,137.47,10.49]
[1642564347249,37.5719,137.57,137.47,10.49]
[1642564348051,51.72540396,137.56,137.47,10.49]
[1642564348251,10.9124,137.54,137.46,35.28176274]
[1642564348456,16.97414748,137.53,137.46,35.28176274]
[1642564348654,24.03514748,137.53,137.41,13.398]
[1642564348852,2.908,137.52,137.41,13.398]
[1642564349054,24.03514748,137.53,137.42,10.9132]
[1642564349459,7.061,137.53,137.43,10.49]
[1642564349655,10.9115,137.54,137.43,13.648]
[1642564350392,48.90577382,137.54,137.44,42.70876989]
[1642564351158,48.90577382,137.54,137.43,2.908]
[1642564351362,8.908,137.53,137.41,10.49]
[1642564351567,10.916,137.5,137.41,10.49]
[1642564352064,24.45527762,137.49,137.42,42.64169024]
[1642564353065,10.9156,137.49,137.42,42.64169024]
[1642564353364,2.91,137.51,137.42,42.64169024]
[1642564354264,42.26055689,137.51,137.42,42.64169024]
[1642564354464,10.9148,137.5,137.4,10.9148]
[1642564354665,2.91,137.49,137.4,10.9148]
[1642564354865,10.9148,137.5,137.4,13.8248]
[1642564355067,10.9148,137.5,137.4,24.3148]
[1642564355469,10.9148,137.5,137.41,36.83342732]
[1642564356666,10.9148,137.5,137.41,36.58342732]
[1642564357367,10.9148,137.5,137.42,7.22052918]
[1642564357999,2.908,137.49,137.42,7.22052918]
[1642564358198,10.9162,137.48,137.42,7.22052918]
[1642564358795,10.9162,137.48,137.42,48.79009937]
[1642564359896,34.01519455,137.48,137.42,7.22052918]
[1642564360297,10.9162,137.48,137.42,7.22052918]
[1642564362200,10.9153,137.5,137.43,0.25]
[1642564362399,26.4711,137.52,137.43,0.25]
[1642564362599,23.5631,137.52,137.42,7.22052918]
[1642564362799,2.908,137.51,137.42,7.22052918]
[1642564363200,43.69186362,137.5,137.42,7.22052918]
[1642564363602,2.05189917,137.48,137.42,7.22052918]
[1642564363804,5.21189917,137.47,137.42,7.22052918]
[1642564364001,2.05189917,137.47,137.42,7.22052918]
[1642564364401,18.75768782,137.46,137.42,7.22052918]
[1642564365606,32.58558782,137.46,137.42,7.22052918]
[1642564366804,32.58558782,137.46,137.42,2.03671613]
[1642564367105,32.58558782,137.46,137.34,13.8291]
[1642564367106,10.9211,137.42,137.34,2.91]
[1642564367908,47.10941589,137.41,137.34,2.91]
[1642564368312,60.94251589,137.41,137.34,2.91]
[1642564368509,6.0,137.4,137.34,2.91]
[1642564368707,2.911,137.39,137.34,2.91]
[1642564369006,6.0,137.38,137.34,0.0001]
[1642564369207,2.912,137.37,137.34,0.0001]
[1642564369416,4.56439994,137.36,137.27,6.09649217]
[1642564369609,2.912,137.35,137.27,6.09649217]
[1642564369811,19.652,137.35,137.27,6.09649217]
[1642564370210,48.13104272,137.34,137.27,6.09649217]
[1642564370408,2.912,137.33,137.27,6.09649217]
[1642564370613,2.912,137.33,137.21,10.16082029]
[1642564370615,10.9319,137.32,137.21,10.16082029]
[1642564371007,10.9319,137.32,137.22,2.914]
[1642564371208,48.13104272,137.34,137.23,40.33460964]
[1642564371411,2.914,137.35,137.23,40.33460964]
[1642564371810,2.914,137.35,137.23,51.26230964]
[1642564372110,6.0,137.34,137.23,139.29430964]
[1642564372309,6.0,137.34,137.24,0.25]
[1642564372512,6.0,137.36,137.25,10.49]
[1642564372712,6.0,137.36,137.26,37.24975788]
[1642564373114,23.2176,137.37,137.26,47.92535788]
[1642564373312,2.912,137.36,137.26,36.99975788]
[1642564373512,6.0,137.35,137.26,36.99975788]
[1642564373712,2.912,137.34,137.26,36.99975788]
[1642564373913,48.10913457,137.35,137.26,36.99975788]
[1642564374112,13.8392,137.36,137.26,36.99975788]
[1642564375112,46.89497208,137.35,137.26,36.99975788]
[1642564375311,2.912,137.34,137.26,36.99975788]
[1642564376615,34.1439,137.37,137.26,36.99975788]
[1642564376616,23.2176,137.37,137.27,0.25]
[1642564376815,52.25521744,137.38,137.27,10.74]
[1642564377215,52.25521744,137.38,137.27,10.49]
[1642564378418,63.18031744,137.38,137.27,10.49]
[1642564379015,0.25,137.37,137.27,10.49]
[1642564379815,52.25521744,137.38,137.27,10.49]
[1642564380215,10.9262,137.37,137.27,10.49]
[1642564380414,2.912,137.36,137.28,0.25]
[1642564380615,2.912,137.38,137.28,10.74]
[1642564381016,2.912,137.4,137.28,10.74]
[1642564381215,2.912,137.4,137.3,44.23853202]
[1642564381420,35.55190166,137.41,137.31,10.49]
[1642564381619,35.55190166,137.41,137.31,10.74]
[1642564381817,35.55190166,137.41,137.31,21.6614]
[1642564382417,35.05190166,137.41,137.31,21.6614]
[1642564382818,13.8334,137.43,137.31,21.6614]
[1642564384422,2.912,137.43,137.31,21.6614]
[1642564384622,2.912,137.43,137.32,6.0]
[1642564384823,1.47750294,137.44,137.35,10.917]
[1642564385023,1.47750294,137.44,137.36,10.49]
[1642564385225,1.47750294,137.44,137.37,46.82932253]
[1642564385424,1.47750294,137.44,137.37,57.31932253]
[1642564385626,1.47750294,137.44,137.38,0.25]
[1642564385828,1.47750294,137.44,137.38,11.1659]
[1642564386828,46.93653068,137.49,137.39,57.0]
[1642564387027,46.93653068,137.49,137.4,10.9142]
[1642564387229,46.93653068,137.49,137.4,11.1642]
[1642564387729,46.93653068,137.49,137.41,81.7]
[1642564387930,46.93653068,137.49,137.41,120.2634319]
[1642564388130,46.93653068,137.49,137.42,0.25]
[1642564388330,46.93653068,137.49,137.43,10.9124]
[1642564388533,2.91,137.54,137.45,58.0]
[1642564388729,2.908,137.55,137.46,0.25]
[1642564389329,2.908,137.55,137.46,44.90953207]
[1642564389629,2.908,137.55,137.48,10.9085]
[1642564390030,2.908,137.55,137.49,0.25]
[1642564390230,1.16538574,137.56,137.46,45.16953207]
[1642564390435,1.16538574,137.56,137.47,71.21]
[1642564390832,1.16538574,137.56,137.48,0.25]
[1642564391234,2.908,137.55,137.47,11.1587]
[1642564391434,37.54308344,137.54,137.46,10.49]
[1642564391651,37.54308344,137.54,137.43,10.49]
[1642564391652,2.908,137.53,137.43,10.49]
[1642564392453,2.908,137.53,137.44,44.88204283]
[1642564392653,3.21728491,137.56,137.45,10.49]
[1642564392654,2.908,137.54,137.45,10.49]
[1642564392852,2.908,137.55,137.45,10.74]
[1642564393255,2.908,137.55,137.46,10.9097]
[1642564393455,1.16538574,137.56,137.47,49.35161994]
[1642564393656,1.16538574,137.56,137.48,10.49]
[1642564394054,1.16538574,137.56,137.49,0.25]
[1642564394555,2.908,137.58,137.51,71.21]
[1642564394754,45.74957126,137.59,137.52,0.25]
[1642564395455,45.74957126,137.59,137.53,21.3944]
[1642564395854,45.74957126,137.59,137.54,0.25]
[1642564396055,2.908,137.63,137.55,10.49]
[1642564396256,2.908,137.63,137.56,0.25]
[1642564396455,2.908,137.63,137.56,11.1517]
[1642564396655,2.908,137.63,137.57,42.96810249]
[1642564397255,2.908,137.63,137.56,10.9017]
[1642564397256,40.89760406,137.62,137.56,10.9017]
[1642564397556,0.32190863,137.59,137.46,10.49]
[1642564397955,13.398,137.58,137.43,10.49]
[1642564398156,6.0,137.57,137.44,10.49]
[1642564398355,42.37013579,137.56,137.45,10.49]
[1642564398555,42.37013579,137.56,137.46,6.0]
[1642564398759,2.908,137.55,137.47,46.22341566]
[1642564399157,2.908,137.56,137.47,46.22341566]
[1642564399362,23.4934,137.59,137.47,46.22341566]
[1642564399563,2.908,137.58,137.47,56.71341566]
[1642564399761,2.908,137.58,137.48,0.25]
[1642564400362,40.96934134,137.57,137.47,67.62201566]
[1642564400564,2.908,137.56,137.47,56.71341566]
[1642564401266,2.908,137.56,137.47,10.49]
[1642564401464,0.25,137.55,137.43,10.49]
[1642564401664,2.908,137.54,137.43,6.0]
[1642564401864,2.908,137.54,137.41,10.49]
[1642564402265,40.62445402,137.53,137.42,42.30725189]
[1642564402466,13.8219,137.52,137.42,42.30725189]
[1642564403368,13.8219,137.52,137.42,52.79725189]
[1642564403369,2.908,137.52,137.42,52.79725189]
[1642564403569,2.908,137.54,137.42,52.79725189]
[1642564403769,2.908,137.54,137.43,0.25]
[1642564404067,13.8204,137.54,137.43,82.3716]
[1642564404768,2.908,137.54,137.43,82.3716]
[1642564404966,46.8546,137.55,137.43,91.1016]
[1642564405166,2.908,137.57,137.43,91.3616]
[1642564405367,13.8172,137.58,137.44,6.0]
[1642564405565,13.8172,137.58,137.45,8.73]
[1642564405767,48.66649443,137.57,137.46,40.66345339]
[1642564405968,2.908,137.56,137.46,40.66345339]
[1642564407170,13.8182,137.56,137.46,51.57325339]
[1642564408972,13.8182,137.56,137.46,60.30325339]
[1642564409172,10.9102,137.56,137.46,60.30325339]
[1642564409371,13.8172,137.57,137.46,60.30325339]
[1642564409575,27.0239,137.58,137.46,60.30325339]
[1642564409972,29.07579917,137.58,137.46,60.30325339]
[1642564410173,29.07579917,137.58,137.48,10.9079]
[1642564410572,39.98419917,137.58,137.49,6.25]
[1642564410774,37.07619917,137.58,137.5,46.21817363]
[1642564410975,39.14844518,137.57,137.34,114.5185]
[1642564411174,2.05189917,137.56,137.38,125.4016]
[1642564411374,2.908,137.55,137.43,10.9123]
[1642564411578,10.9124,137.53,137.43,10.9123]
[1642564411778,12.96429917,137.53,137.4,8.73]
[1642564411977,4.95989917,137.52,137.44,37.36363043]
[1642564412176,2.908,137.53,137.44,37.36363043]
[1642564412375,4.95989917,137.54,137.44,48.27533043]
[1642564412577,2.05189917,137.54,137.44,48.27533043]
[1642564412776,10.9122,137.54,137.44,37.36363043]
[1642564412976,39.60047901,137.53,137.44,37.36363043]
[1642564413678,41.65237818,137.53,137.44,37.36363043]
[1642564414083,41.65237818,137.53,137.45,0.25]
[1642564414282,2.05189917,137.53,137.45,0.25]
[1642564414683,2.05189917,137.54,137.45,82.3713]
[1642564414883,2.05189917,137.54,137.45,11.1613]
[1642564415783,2.05189917,137.53,137.45,11.1613]
[1642564415980,37.9668192,137.53,137.45,11.1613]
[1642564416182,37.9668192,137.53,137.44,48.27583043]
[1642564416381,2.908,137.52,137.44,37.36363043]
[1642564416586,2.05189917,137.52,137.44,37.36363043]
[1642564417186,2.05189917,137.52,137.44,46.09363043]
[1642564417484,2.05189917,137.53,137.45,71.21]
[1642564417684,2.05189917,137.54,137.45,71.46]
[1642564418314,2.05189917,137.54,137.47,10.9087]
[1642564418715,2.05189917,137.55,137.48,71.46]
[1642564419119,2.05189917,137.56,137.48,71.46]
[1642564419515,2.05189917,137.57,137.49,41.98182931]
[1642564419714,2.05189917,137.57,137.5,0.25]
[1642564420416,2.05189917,137.57,137.5,11.1567]
[1642564420718,2.908,137.59,137.51,44.0]
[1642564420915,45.5713,137.6,137.52,55.07372121]
[1642564421116,2.908,137.63,137.53,6.0]
[1642564421316,2.908,137.63,137.53,6.25]
[1642564422517,2.908,137.63,137.53,10.9048]
[1642564422518,39.17505779,137.63,137.53,10.9048]
[1642564422819,8.45463514,137.62,137.52,46.34372121]
[1642564423017,11.11163514,137.61,137.52,46.34372121]
[1642564423217,7.01079833,137.61,137.52,46.34372121]
[1642564423517,57.9175886,137.6,137.52,46.34372121]
[1642564423716,2.907,137.59,137.52,46.34372121]
[1642564425418,13.8146,137.59,137.52,46.34372121]
[1642564425817,2.907,137.59,137.52,46.34372121]
[1642564426020,2.907,137.59,137.53,0.25]
[1642564426216,2.907,137.61,137.53,0.25]
[1642564427121,2.907,137.61,137.53,11.1555]
[1642564429621,37.69649833,137.62,137.53,11.1555]
[1642564430123,26.79129833,137.62,137.53,11.1555]
[1642564430324,22.6875,137.62,137.53,11.1555]
[1642564432034,2.907,137.63,137.53,12.58834042]
[1642564432230,74.08541014,137.65,137.53,12.58834042]
[1642564432429,71.17841014,137.65,137.53,12.58834042]
[1642564432640,71.17841014,137.65,137.54,71.21]
[1642564433036,82.08121014,137.65,137.55,122.73620764]
[1642564433234,39.05279833,137.65,137.56,0.25]
[1642564433634,14.19990051,137.64,137.56,0.25]
[1642564433834,44.271212,137.63,137.56,0.25]
[1642564434436,23.91399833,137.64,137.56,0.25]
[1642564434639,7.00979833,137.64,137.56,0.25]
[1642564435339,2.906,137.64,137.56,0.25]
[1642564435738,78.31884787,137.65,137.56,0.25]
[1642564436866,67.41604787,137.65,137.56,11.1523]
[1642564437066,28.14999833,137.65,137.56,11.1523]
[1642564437568,24.0462,137.65,137.57,71.21]
[1642564437765,24.0462,137.65,137.58,0.25]
[1642564437967,24.0462,137.65,137.56,0.25]
[1642564438568,24.0462,137.65,137.58,42.53941777]
[1642564438769,24.0462,137.65,137.59,0.25]
[1642564439171,31.01919833,137.67,137.59,0.25]
[1642564439370,28.11319833,137.67,137.59,0.25]
[1642564439572,24.0094,137.67,137.59,11.1498]
[1642564445680,1.65487568,137.68,137.6,71.21]
[1642564445880,1.65487568,137.68,137.62,10.8975]
[1642564446279,1.65487568,137.68,137.63,0.25]
[1642564446479,1.65487568,137.68,137.63,45.48301644]
[1642564447081,1.65487568,137.68,137.63,56.37981644]
[1642564448483,7.00779833,137.72,137.63,56.37981644]
[1642564448682,7.00779833,137.73,137.63,56.37981644]
[1642564449285,2.904,137.73,137.63,56.37981644]
[1642564449584,2.904,137.73,137.66,10.8943]
[1642564449787,2.904,137.74,137.67,45.10905144]
[1642564450684,2.904,137.74,137.64,10.8955]
[1642564450883,2.904,137.74,137.63,8.73]
[1642564450884,9.96553145,137.73,137.63,8.73]
[1642564451083,2.904,137.72,137.63,8.73]
[1642564451284,8.78169223,137.72,137.6,8.73]
[1642564451484,31.58429223,137.72,137.6,8.73]
[1642564451685,45.19055986,137.71,137.61,46.10953915]
[1642564451883,2.904,137.7,137.61,46.10953915]
[1642564452086,2.404,137.7,137.62,71.21]
[1642564452284,2.404,137.7,137.62,0.25]
[1642564452488,2.904,137.71,137.62,0.25]
[1642564453285,2.904,137.71,137.63,10.8968]
[1642564453488,22.8026,137.72,137.63,10.8968]
[1642564453688,7.03662375,137.75,137.65,71.21]
[1642564453886,4.13262375,137.75,137.65,71.21]
[1642564454086,4.13262375,137.75,137.66,0.25]
[1642564454288,0.02882542,137.75,137.66,11.1437]
[1642564454587,8.93282542,137.75,137.66,51.2438199]
[1642564454786,2.93282542,137.75,137.66,51.2438199]
[1642564455093,6.0,137.74,137.67,6.0]
[1642564455286,6.0,137.74,137.68,71.46]
[1642564455588,0.02882542,137.75,137.7,108.31839724]
[1642564455788,0.02882542,137.75,137.71,0.25]
[1642564457087,0.02882542,137.75,137.71,11.1397]
[1642564457692,0.02882542,137.75,137.66,8.73]
[1642564457887,2.904,137.74,137.69,0.25]
[1642564458287,2.904,137.74,137.66,8.73]
[1642564458487,41.33314856,137.75,137.68,10.8931]
[1642564459088,0.02882542,137.75,137.68,10.8931]
[1642564459690,0.02882542,137.75,137.69,0.25]
[1642564459889,2.904,137.74,137.69,0.25]
[1642564460089,0.02882542,137.75,137.69,0.25]
[1642564464523,0.02882542,137.75,137.68,0.25]
[1642564465827,0.02882542,137.75,137.67,56.51848842]
[1642564466925,0.02882542,137.75,137.67,127.72848842]
[1642564467330,0.02882542,137.75,137.7,10.8914]
[1642564467726,0.02882542,137.75,137.71,0.25]
[1642564467927,0.02882542,137.75,137.71,35.66836579]
[1642564468726,0.02882542,137.75,137.71,46.55956579]
[1642564474033,0.02882542,137.75,137.69,10.8922]
[1642564474232,0.02882542,137.75,137.67,11.89284042]
[1642564474433,2.904,137.74,137.64,10.46]
[1642564474633,2.904,137.74,137.62,132.2187]
[1642564474833,0.25,137.73,137.62,57.0713]
[1642564475034,2.904,137.72,137.63,34.99221407]
[1642564475334,3.154,137.73,137.63,34.99221407]
[1642564475535,3.154,137.73,137.67,42.01958842]
[1642564476535,2.904,137.73,137.67,42.01958842]
[1642564476736,4.10379833,137.74,137.68,0.25]
[1642564477236,0.02882542,137.75,137.68,0.25]
[1642564477437,4.13262375,137.75,137.68,0.25]
[1642564477638,48.51192443,137.75,137.69,10.8923]
[1642564478037,44.41203061,137.75,137.66,10.46]
[1642564478237,17.3581067,137.74,137.64,10.46]
[1642564478438,37.39249833,137.74,137.64,10.46]
[1642564478638,8.20549044,137.73,137.61,24.6061]
[1642564478837,7.00779833,137.72,137.61,24.6061]
[1642564479040,45.4587506,137.7,137.63,43.9640623]
[1642564479442,45.4587506,137.7,137.62,33.5861]
[1642564479641,45.4587506,137.7,137.62,10.8981]
[1642564480040,45.4587506,137.7,137.63,1.67933451]
[1642564480445,45.4587506,137.7,137.64,45.03768622]
[1642564481543,45.4587506,137.7,137.64,44.53768622]
[1642564482343,45.4587506,137.7,137.64,1.42933451]
[1642564482547,56.3578506,137.7,137.61,12.32773451]
[1642564482748,56.3578506,137.7,137.61,1.42933451]
[1642564482749,9.154,137.69,137.61,1.42933451]
[1642564482948,4.10379833,137.68,137.53,34.3827]
[1642564483148,13.00979833,137.67,137.53,34.3827]
[1642564483346,40.59140303,137.66,137.54,38.74004334]
[1642564483643,10.9035,137.64,137.55,10.9032]
[1642564483850,36.23894492,137.62,137.54,38.74004334]
[1642564484247,0.25,137.61,137.54,38.74004334]
[1642564484447,6.25,137.61,137.53,10.46]
[1642564485245,17.1559,137.61,137.53,21.3653]
[1642564485446,40.40416057,137.59,137.51,48.08427351]
[1642564485850,6.25,137.58,137.51,48.08427351]
[1642564486253,6.0,137.58,137.51,48.08427351]
[1642564486749,6.0,137.59,137.51,48.08427351]
[1642564487050,0.25,137.57,137.51,48.08427351]
[1642564487449,2.908,137.58,137.51,58.99117351]
[1642564487649,16.9075,137.59,137.51,58.99117351]
[1642564487957,43.22860918,137.74,137.52,1.42933451]
[1642564488156,51.462,137.83,137.6,44.14003451]
[1642564488378,51.462,137.83,137.63,130.76]
[1642564488379,13.9342,137.74,137.63,130.76]
[1642564488559,71.21,137.75,137.64,81.8958]
[1642564488761,41.56800947,137.82,137.64,143.48436661]
[1642564488952,11.0465,137.83,137.81,130.76]
[1642564489185,11.0465,137.83,137.82,112.42813644]
[1642564489389,2.904,137.88,137.82,122.88813644]
[1642564489584,2.9,137.89,137.87,130.76]
[1642564489784,2.901,137.99,137.88,141.22]
[1642564489987,0.001,137.99,137.89,2.9]
[1642564490190,10.68725186,138.02,137.98,130.76]
[1642564490191,2.899,138.01,137.98,130.76]